Cogmind - Beta 11 X4 @@@ ROGUE MODE // 2021.05.10 @ 16:20:33 Player: spruce Result: Destroyed by D-63 Destroyer with Heavy Rocket Launcher Performance ------------- Evolutions (6) 3000 Regions Visited (16) 3200 Robots Destroyed (186) 930 Value Destroyed (6546) 6546 Prototype IDs (29) 580 Alien Tech Used (2) 400 Bonus (3607) 3607 TOTAL SCORE: 18263 Bonus ------- High Alert Combat Kills 1665 Follower Combat Kills 642 Met Zhirov 300 Met Warlord at Base 500 MAIN.C Attacked Warlord 500 Cogmind --------- Core Integrity 0/1150 Matter 300/300 Energy 41/100 System Corruption 0% Temperature Cool (0) Movement Core (50) Location -4/Warlord Parts ------- > --- POWER (1) -------- (None) > --- PROPULSION (4) --- (None) > --- UTILITY (12) ----- Advanced Signal Interpreter > --- WEAPON (2) ------- (None) > --- INVENTORY (5) ---- F-cell Engine Vortex Chain Reactor Improved Energy Mantle Vortex Cannon (26) Peak State ------------ > --- POWER ------------ Antimatter Reactor > --- PROPULSION ------- Myomer Leg Cooled Antigrav System > --- UTILITY ---------- Advanced Signal Interpreter Improved Energy Mantle Wardrone Bay > --- WEAPON ----------- Vortex Cannon > --- INVENTORY -------- F-cell Engine Vortex Chain Reactor Improved Focal Shield Vortex Cannon [Rating: 179] Favorites ----------- Power F-cell Engine Engine F-cell Engine Power Core Light Nuclear Core Reactor Antimatter Reactor Propulsion Improved Medium Treads Treads Improved Medium Treads Leg Advanced Myomer Leg Wheel Armored Huge Wheel Hover Unit Cooled Antigrav System Utility Large Storage Unit Device Improved Heat Sink Storage Large Storage Unit Processor Improved Armor Integrity Analyzer Hackware Ghost Barrier Protection Layered Medium Armor Plating Weapon Heavy Gatling Laser Energy Gun Heavy Gatling Laser Energy Cannon Matter Neutralizer Ballistic Gun Hypervelocity Gauss Rifle Launcher Grenade Launcher Build | -11 -10 -10 -10 -9 -8 -7 -6 -5 -5 -5 -5 -4 -4 -4 -4 -4 ------- Run | Scr Mat Min Exi Min Mat Fac Fac Fac Upp Upp Zhi Pro Fac Upp Upp War Slots Evolved 12 | . . . . . 4 2 2 2 . . . . 2 . . . Power . | . . . . . . . . . . . . . . . . . Propulsion 2 | . . . . . . 1 1 . . . . . . . . . Utility 10 | . . . . . 4 1 1 2 . . . . 2 . . . Weapon . | . . . . . . . . . . . . . . . . . Parts Attached 170 | 7 9 3 . . 12 32 47 14 1 2 10 . 2 8 4 19 Power 15 | 1 2 1 . . 1 3 3 . . . . . . . 1 3 Engine 9 | 1 2 1 . . . 1 2 . . . . . . . 1 1 Core 4 | . . . . . 1 2 1 . . . . . . . . . Reactor 2 | . . . . . . . . . . . . . . . . 2 Propulsion 40 | 2 2 . . . 2 12 8 6 . . 5 . . . 1 2 Treads 19 | . . . . . 2 7 7 1 . . 2 . . . . . Leg 12 | . 2 . . . . 5 1 . . . 3 . . . . 1 Wheel 8 | 2 . . . . . . . 5 . . . . . . 1 . Hover 1 | . . . . . . . . . . . . . . . . 1 Flight . | . . . . . . . . . . . . . . . . . Utility 72 | 2 2 1 . . 7 8 20 8 1 2 5 . 2 3 . 11 Device 28 | 1 1 1 . . 2 2 7 1 1 . 1 . 2 2 . 7 Storage 10 | 1 1 . . . 2 . 1 1 . . 1 . . 1 . 2 Processor 8 | . . . . . 2 . 2 3 . . . . . . . 1 Hackware 1 | . . . . . . . . . . . . . . . . 1 Protection 25 | . . . . . 1 6 10 3 . 2 3 . . . . . Artifact . | . . . . . . . . . . . . . . . . . Weapon 43 | 2 3 1 . . 2 9 16 . . . . . . 5 2 3 Energy Gun 21 | 1 2 1 . . 2 6 7 . . . . . . 1 1 . Energy Cannon 6 | . . . . . . . 1 . . . . . . 2 . 3 Ballistic Gun 13 | 1 1 . . . . 3 6 . . . . . . 1 1 . Ballistic Cannon . | . . . . . . . . . . . . . . . . . Launcher 3 | . . . . . . . 2 . . . . . . 1 . . Special Weapon . | . . . . . . . . . . . . . . . . . Impact Weapon . | . . . . . . . . . . . . . . . . . Slashing Weapon . | . . . . . . . . . . . . . . . . . Piercing Weapon . | . . . . . . . . . . . . . . . . . Special Melee Weapon . | . . . . . . . . . . . . . . . . . Unidentified Prototypes 20 | . . . . . . 2 3 1 . . 5 . . . 1 8 Parts Lost 74 | . 7 1 . . 1 20 15 2 . . . . 8 3 14 3 Power 5 | . 1 . . . . 2 1 . . . . . . . 1 . Propulsion 19 | . 2 . . . . 4 4 2 . . . . 1 . 4 2 Utility 27 | . 2 . . . 1 7 6 . . . . . 6 . 5 . Weapon 23 | . 2 1 . . . 7 4 . . . . . 1 3 4 1 Highest Loss Streak 10 | . 5 1 . . 1 5 7 2 . . . . 8 2 10 3 Average Slot Usage (%) 87 | . 93 99 100 100 98 95 90 96 88 88 91 100 98 69 68 25 Engine 5 | . 12 14 14 14 1 2 5 5 5 5 5 5 5 5 4 . Core 1 | . . . . . 7 4 . . . . . . . . . . Treads 8 | . . . . . 12 8 23 11 . . 1 5 5 . . . Leg 10 | . 22 28 28 28 5 13 . 3 . . 6 17 15 15 13 3 Wheel 1 | . 4 . . . . . . 4 11 11 6 . . . . . Device 13 | . 12 14 14 14 9 19 11 13 11 11 11 11 20 7 12 4 Storage 9 | . 13 14 14 14 15 7 11 9 5 5 5 5 5 10 8 . Processor 10 | . . . . . 18 7 3 13 23 23 23 23 21 21 20 9 Protection 10 | . . . . . 9 14 17 18 17 17 16 17 14 . . . Energy Gun 9 | . 21 27 28 28 18 7 3 11 11 11 11 11 9 1 . . Ballistic Gun 3 | . 5 . . . . 6 8 . . . . . . 1 . . Naked Turns . | . . . . . . . . . . . . . . . . . Heaviest Build 95 | 14 27 27 27 27 40 68 88 72 64 64 64 64 68 60 60 95 Greatest Support 120 | 26 26 20 20 20 40 60 120 90 56 56 90 90 90 90 90 25 Greatest Overweight (x) 4 | 2 1 1 1 1 1 2 1 3 1 1 2 . . . 1 4 Average Overweight (x) . | . . 1 1 1 . . . . 1 1 . . . . . . Largest Inventory Capacity 15 | 8 15 15 15 15 15 15 15 15 15 15 15 15 15 15 15 5 Average Capacity 13 | 6 9 15 15 15 15 15 15 15 15 15 15 15 15 15 13 5 Most Carried 15 | 7 14 15 15 15 15 15 15 15 15 15 15 15 14 14 8 5 Average Carried 12 | 4 7 14 14 15 14 13 13 13 15 14 14 15 13 9 5 4 Final Capacity 15 | 8 15 15 15 15 15 15 15 15 15 15 15 15 15 15 5 5 Final Carried 15 | 7 14 15 15 15 15 12 15 15 15 15 15 15 14 8 5 5 Class Distribution -------------------- 75% | Mutant 19% | Scavenger-Mutant 4% | Skirmisher Dominant Class ---------------- Mutant | -10/Materials Mutant | -10/Mines Mutant | -10/Exiles Mutant | -9/Mines Mutant | -8/Materials Scavenger-Mutant | -7/Factory Mutant | -6/Factory Mutant | -5/Factory Mutant | -5/Upper Caves Mutant | -5/Upper Caves Mutant | -5/Zhirov Mutant | -4/Proximity Caves Skirmisher | -4/Factory Mutant | -4/Upper Caves Mutant | -4/Upper Caves Mutant | -4/Warlord Resources | -11 -10 -10 -10 -9 -8 -7 -6 -5 -5 -5 -5 -4 -4 -4 -4 -4 ----------- Run | Scr Mat Min Exi Min Mat Fac Fac Fac Upp Upp Zhi Pro Fac Upp Upp War Matter Collected 3398 | 261 139 50 . . 120 733 1494 130 10 20 . 60 . 195 10 176 Remotely . | . . . . . . . . . . . . . . . . . Salvage Created 7832 | 62 584 202 . . 515 2233 2916 502 226 56 . . 223 277 36 . Parts 392 | 8 43 14 . . 21 98 159 20 15 2 . . 3 6 3 . Haulers Intercepted 5 | . 1 . . . . 1 1 2 . . . . . . . . Recyclers Shooed 11 | 1 2 . . . 1 5 2 . . . . . . . . . Parts Field Recycled . | . . . . . . . . . . . . . . . . . Retrieved Matter . | . . . . . . . . . . . . . . . . . Parts Self-Destructed 113 | . . . . . . . . . 15 2 . . . 5 8 83 Prevented 7 | . . . . . . . . . . . . . . 3 . 4 Kills | -11 -10 -10 -10 -9 -8 -7 -6 -5 -5 -5 -5 -4 -4 -4 -4 -4 ------- Run | Scr Mat Min Exi Min Mat Fac Fac Fac Upp Upp Zhi Pro Fac Upp Upp War Combat Hostiles Destroyed 136 | . 13 4 . . 7 35 49 3 10 1 . . 5 7 2 . Guns 108 | . 13 4 . . 5 32 35 3 9 1 . . 2 4 . . Cannons 4 | . . . . . . . 2 . . . . . . . 2 . AOE 15 | . . . . . . . 11 . . . . . 3 1 . . Classes Destroyed 16 | 1 7 1 . . . 3 4 . . . . . . . . . Worker 13 | . 1 . . . . 4 5 3 . . . . . . . . Builder 9 | . 1 . . . 1 3 3 1 . . . . . . . . Tunneler 5 | 3 . . . . . 2 . . . . . . . . . . Hauler 5 | . 1 . . . . 1 1 2 . . . . . . . . Recycler 14 | . 1 . . . 2 7 3 1 . . . . . . . . Watcher 4 | . 2 . . . . . 1 1 . . . . . . . . Swarmer 32 | . 6 . . . . 4 8 . 8 . . . . 5 1 . Saboteur 1 | . . . . . . . 1 . . . . . . . . . Grunt 68 | . 7 2 . . 6 21 26 . . 1 . . 4 1 . . Brawler 1 | . . . . . . 1 . . . . . . . . . . Duelist 2 | . . . . . . . 2 . . . . . . . . . Protector 1 | . . . . . . . 1 . . . . . . . . . Sentry 14 | . . 2 . . 1 3 4 1 . . . . 1 1 1 . Hunter 8 | . . . . . . 3 1 2 2 . . . . . . . Programmer 8 | . . . . . . 3 5 . . . . . . . . . Behemoth 1 | . . . . . . . 1 . . . . . . . . . Best Kill Streak 15 | 2 8 2 . . 6 5 15 4 6 1 . . 5 5 1 . Combat Bots Only 14 | . 6 2 . . 4 4 14 1 6 1 . . 5 5 1 . Max Kills in Single Turn 2 | 1 2 1 . . 2 2 2 1 2 1 . . 2 1 1 . Gunslinging 1 | . 1 . . . . 1 . . 1 . . . . . . . Exploded 2 | . . . . . . . 2 . . . . . 2 1 . . Melee . | . . . . . . . . . . . . . . . . . Uniques/NPCs Destroyed . | . . . . . . . . . . . . . . . . . Combat | -11 -10 -10 -10 -9 -8 -7 -6 -5 -5 -5 -5 -4 -4 -4 -4 -4 -------- Run | Scr Mat Min Exi Min Mat Fac Fac Fac Upp Upp Zhi Pro Fac Upp Upp War Damage Taken 14811 | . 883 173 . . 397 3128 4336 227 736 101 . 311 801 668 1836 1214 Core 2241 | . 188 13 . . 107 421 372 . 39 28 . . 86 126 546 315 Absorbed by Shields 446 | . . . . . . . 381 . . . . . . . . 65 Core Remaining (%) 64 | 100 . . . 19 80 39 56 . . . . 93 . . . . Volleys Fired 454 | 8 46 11 . . 23 126 156 19 14 1 . . 9 25 12 4 Largest 2 | 2 2 2 . . 2 2 2 2 2 2 . . 2 2 2 1 Hottest 200 | 60 90 90 . . 113 128 200 200 200 200 . . 200 190 180 50 Shots Fired 812 | 16 81 21 . . 46 234 275 38 28 2 . . 18 35 14 4 Gun 760 | 16 81 21 . . 46 234 245 38 28 2 . . 18 29 2 . Cannon 32 | . . . . . . . 11 . . . . . . 5 12 4 Launcher 20 | . . . . . . . 19 . . . . . . 1 . . Special . | . . . . . . . . . . . . . . . . . Kinetic 350 | 8 38 . . . . 102 184 . . . . . . 18 . . Thermal 434 | 8 43 21 . . 46 132 68 38 28 2 . . 18 16 14 . Explosive 20 | . . . . . . . 19 . . . . . . 1 . . Electromagnetic 4 | . . . . . . . 4 . . . . . . . . . Entropic 4 | . . . . . . . . . . . . . . . . 4 Robot Hit Streak 37 | 3 10 9 . . 20 19 37 17 15 5 . . 10 8 14 1 Robot Miss Streak 7 | 2 2 2 . . 3 7 4 4 4 1 . . 2 6 2 3 Penetration Max 2 | . . . . . . . 2 . . . . . . . . . Secondary Targets 20 | . 4 . . . 1 4 7 . 2 . . . 1 1 . . Max Gunslinging Chain 1 | . 1 . . . 1 1 1 . 1 . . . 1 1 . . Shots Hit Robots 629 | 9 54 14 . . 38 186 214 35 25 2 . . 18 22 11 1 Core Hits 424 | 3 32 9 . . 16 103 182 26 14 3 . . 20 12 4 . Critical Kills 15 | . . . . . . 1 12 . . . . . . 2 . . Critical Parts Destroyed 18 | . . . . . . . 18 . . . . . . . . . Critical Strikes 52 | . 1 . . . 6 12 31 . . . . . . 2 . . Burn 18 | . 1 . . . 6 11 . . . . . . . . . . Meltdown 1 | . . . . . . . . . . . . . . 1 . . Destroy 33 | . . . . . . 1 31 . . . . . . 1 . . Melee Attacks . | . . . . . . . . . . . . . . . . . Impact . | . . . . . . . . . . . . . . . . . Slashing . | . . . . . . . . . . . . . . . . . Piercing . | . . . . . . . . . . . . . . . . . Sneak Attacks . | . . . . . . . . . . . . . . . . . Combat Hostiles . | . . . . . . . . . . . . . . . . . Follow-up Attacks . | . . . . . . . . . . . . . . . . . Damage Inflicted 14622 | 109 759 165 . . 577 3946 5135 1041 670 85 . . 1240 432 393 70 Guns 11576 | 109 652 165 . . 577 3946 3498 1041 670 85 . . 553 239 41 . Cannons 770 | . . . . . . . 208 . . . . . . 151 341 70 Explosions 2253 | . 107 . . . . . 1417 . . . . . 687 42 . . Melee . | . . . . . . . . . . . . . . . . . Ramming 23 | . . . . . . . 12 . . . . . . . 11 . Kinetic 4137 | 64 297 . . . . 1599 2133 . . . . . . 44 . . Thermal 8380 | 45 355 165 . . 577 2347 1814 1041 670 85 . . 553 346 382 . Explosive 1942 | . 107 . . . . . 1106 . . . . . 687 42 . . Electromagnetic 70 | . . . . . . . 70 . . . . . . . . . Impact . | . . . . . . . . . . . . . . . . . Slashing . | . . . . . . . . . . . . . . . . . Piercing . | . . . . . . . . . . . . . . . . . Entropic 70 | . . . . . . . . . . . . . . . . 70 Highest Corruption 10 | . . . . . . 10 . . . . . . . . . . Average Corruption 7 | . . . . . . 7 . . . . . . . . . . Corruption Purged . | . . . . . . . . . . . . . . . . . Effects 60 | . . . . . . 60 . . . . . . . . . . Message Errors 10 | . . . . . . 10 . . . . . . . . . . Matter Fused 14 | . . . . . . 14 . . . . . . . . . . Heat Flow Errors 8 | . . . . . . 8 . . . . . . . . . . Energy Discharges 7 | . . . . . . 7 . . . . . . . . . . Parts Rejected 1 | . . . . . . 1 . . . . . . . . . . Data Loss (minor) 6 | . . . . . . 6 . . . . . . . . . . Data Loss (major) 5 | . . . . . . 5 . . . . . . . . . . Misfires 2 | . . . . . . 2 . . . . . . . . . . Misdirections 2 | . . . . . . 2 . . . . . . . . . . Weapon Failures 5 | . . . . . . 5 . . . . . . . . . . Overload Shots . | . . . . . . . . . . . . . . . . . Overflow Damage 189 | . 23 . . . . . 51 . . . . . 50 10 12 43 Projectiles 68 | . . . . . . . 3 . . . . . . 10 12 43 Explosions 121 | . 23 . . . . . 48 . . . . . 50 . . . Melee . | . . . . . . . . . . . . . . . . . Knockbacks 1 | . . . . . . . 1 . . . . . . . . . Impact 1 | . . . . . . . 1 . . . . . . . . . Kinetic . | . . . . . . . . . . . . . . . . . Secondary . | . . . . . . . . . . . . . . . . . Self-Inflicted Damage 320 | . 100 . . . . 96 85 . . . . . 39 . . . Shots 5 | . 1 . . . . 1 2 . . . . . 1 . . . Rammed 1 | . . . . . . . 1 . . . . . . . . . Targets Rammed 9 | . . . . . . . 1 . . . . . . . 8 . Kicked 8 | . . . . . . . . . . . . . . . 8 . Crushed . | . . . . . . . . . . . . . . . . . Highest Temperature 309 | . 54 54 . . 243 232 309 3 263 51 . . 233 60 . 1 Average Temperature 83 | . 16 26 . . 107 72 105 3 89 26 . . 102 31 . 1 Received Heat Transfer 3581 | . 339 117 . . 207 1155 1233 9 . 21 . 36 226 60 45 133 Effects 4 | . . . . . 2 . 2 . . . . . . . . . Energy Bleed 4 | . . . . . 2 . 2 . . . . . . . . . Siege Activations . | . . . . . . . . . . . . . . . . . Robots Corrupted . | . . . . . . . . . . . . . . . . . Combat Hostiles . | . . . . . . . . . . . . . . . . . Parts Fried . | . . . . . . . . . . . . . . . . . Impact Corruptions . | . . . . . . . . . . . . . . . . . Robots Melted 9 | . . . . . 2 3 1 . 1 . . . . 2 . . Combat Hostiles 9 | . . . . . 2 3 1 . 1 . . . . 2 . . Parts Melted 29 | . 1 2 . . 6 10 3 2 1 . . . . 4 . . Heat Transferred 16326 | 100 992 434 . . 1887 5375 2909 1725 950 125 . . 875 510 444 . Parts Sabotaged . | . . . . . . . . . . . . . . . . . Parts Stolen . | . . . . . . . . . . . . . . . . . Parts Stripped . | . . . . . . . . . . . . . . . . . Power Chain Reactions 1 | . . . . . . . 1 . . . . . . . . . Missiles Intercepted . | . . . . . . . . . . . . . . . . . Alert | -11 -10 -10 -10 -9 -8 -7 -6 -5 -5 -5 -5 -4 -4 -4 -4 -4 ------- Run | Scr Mat Min Exi Min Mat Fac Fac Fac Upp Upp Zhi Pro Fac Upp Upp War Peak Influence 1633 | 15 402 172 . . 165 859 1633 1127 . . . . 209 . . . Initial 798 | . 9 77 . . . 45 420 798 . . . . . . . . Average 508 | 4 216 135 . . 67 472 861 1011 . . . . 11 . . . Maximum Alert Level 5 | . 2 . . . . 3 5 4 . . . . 1 . . . Low Security (%) 36 | 100 61 100 . 100 100 22 . . . . . . 98 . . . Level 1 4 | . 38 . . . . 4 . . . . . . 1 . . . Level 2 24 | . . . . . . 50 34 . . . . . . . . . Level 3 21 | . . . . . . 23 32 82 . . . . . . . . Level 4 11 | . . . . . . . 30 17 . . . . . . . . Level 5 1 | . . . . . . . 3 . . . . . . . . . High Security . | . . . . . . . . . . . . . . . . . Max Security . | . . . . . . . . . . . . . . . . . Squads Dispatched 27 | . 2 . . . 1 9 12 3 . . . . . . . . Investigation 7 | . 1 . . . 1 2 1 2 . . . . . . . . Extermination 7 | . . . . . . 3 4 . . . . . . . . . Reinforcement 10 | . 1 . . . . 4 4 1 . . . . . . . . Assault 3 | . . . . . . . 3 . . . . . . . . . Garrison . | . . . . . . . . . . . . . . . . . Intercept . | . . . . . . . . . . . . . . . . . Construction Impeded 3 | . . . . . . 1 2 . . . . . . . . . Haulers Reinforced 2 | . . . . . . 1 . 1 . . . . . . . . Cargo Convoy Interrupts . | . . . . . . . . . . . . . . . . . Stealth | -11 -10 -10 -10 -9 -8 -7 -6 -5 -5 -5 -5 -4 -4 -4 -4 -4 --------- Run | Scr Mat Min Exi Min Mat Fac Fac Fac Upp Upp Zhi Pro Fac Upp Upp War Distress Signals 8 | . 1 . . . . 2 4 1 . . . . . . . . Communications Jammed . | . . . . . . . . . . . . . . . . . Distress Signals . | . . . . . . . . . . . . . . . . . Times Spotted 213 | . 19 4 . . 10 45 75 6 11 2 . 1 10 6 10 14 Peak Tracking Total 10 | . 7 2 . . 4 6 10 1 4 1 . 1 5 4 5 10 Tactical Retreats 13 | . . . . . . 4 6 . 1 1 . . . . 1 . Traps | -11 -10 -10 -10 -9 -8 -7 -6 -5 -5 -5 -5 -4 -4 -4 -4 -4 ------- Run | Scr Mat Min Exi Min Mat Fac Fac Fac Upp Upp Zhi Pro Fac Upp Upp War Traps Triggered 5 | . 1 . . . 1 3 . . . . . . . . . . Indirectly . | . . . . . . . . . . . . . . . . . Trap Hack Attempts . | . . . . . . . . . . . . . . . . . Triggered . | . . . . . . . . . . . . . . . . . Disarmed . | . . . . . . . . . . . . . . . . . Reprogrammed . | . . . . . . . . . . . . . . . . . Reused . | . . . . . . . . . . . . . . . . . Traps Extracted . | . . . . . . . . . . . . . . . . . Installed . | . . . . . . . . . . . . . . . . . Triggered 17 | . . . . . . . . . . . . . . 3 . 14 Machines | -11 -10 -10 -10 -9 -8 -7 -6 -5 -5 -5 -5 -4 -4 -4 -4 -4 ---------- Run | Scr Mat Min Exi Min Mat Fac Fac Fac Upp Upp Zhi Pro Fac Upp Upp War Machines Disabled 12 | . 1 . . . . 1 6 . . . . . 3 . . 1 Max in Single Turn 2 | . 1 . . . . 1 2 . . . . . 2 . . 1 Garrison Access 1 | . . . . . . . . 1 . . . . . . . . Machines Sabotaged . | . . . . . . . . . . . . . . . . . Garrisons Compromised . | . . . . . . . . . . . . . . . . . Overloaded Fab Kills . | . . . . . . . . . . . . . . . . . Fab Network Shutdowns 2 | . . . . . . 1 1 . . . . . . . . . Hacking | -11 -10 -10 -10 -9 -8 -7 -6 -5 -5 -5 -5 -4 -4 -4 -4 -4 --------- Run | Scr Mat Min Exi Min Mat Fac Fac Fac Upp Upp Zhi Pro Fac Upp Upp War Machines Accessed 26 | . 4 . . . 3 4 5 2 . . 6 . 1 . . 1 Terminals 12 | . 3 . . . 3 1 3 1 . . . . 1 . . . Fabricators 4 | . . . . . . 2 2 . . . . . . . . . Repair Stations . | . . . . . . . . . . . . . . . . . Recycling Units 1 | . 1 . . . . . . . . . . . . . . . Scanalyzers 1 | . . . . . . 1 . . . . . . . . . . Garrison Access 1 | . . . . . . . . 1 . . . . . . . . Total Hacks 80 | . 8 . . . 8 14 15 7 . . 26 . 1 . . 1 Successful 50 | . 4 . . . 3 6 8 2 . . 26 . . . . 1 Failed 30 | . 4 . . . 5 8 7 5 . . . . 1 . . . Catastrophic 6 | . 1 . . . 1 . 2 1 . . . . 1 . . . Database Lockouts . | . . . . . . . . . . . . . . . . . Manual 23 | . 5 . . . 5 3 4 5 . . . . 1 . . . Terminals 28 | . 7 . . . 8 2 6 4 . . . . 1 . . . Fabricators 17 | . . . . . . 8 9 . . . . . . . . . Repair Stations . | . . . . . . . . . . . . . . . . . Recycling Units 1 | . 1 . . . . . . . . . . . . . . . Scanalyzers 4 | . . . . . . 4 . . . . . . . . . . Garrison Access 3 | . . . . . . . . 3 . . . . . . . . Terminal Hacks 33 | . 3 . . . 2 . 1 . . . 26 . . . . 1 Record 14 | . . . . . . . . . . . 14 . . . . . Part Schematic 4 | . . . . . . . . . . . 4 . . . . . Robot Analysis 4 | . . . . . . . . . . . 4 . . . . . Prototype ID Bank 4 | . . . . . . . . . . . 4 . . . . . Open Door 1 | . . . . . . . . . . . . . . . . 1 Branch Access Points 2 | . 1 . . . 1 . . . . . . . . . . . Registered Components 1 | . 1 . . . . . . . . . . . . . . . Zone Layout 3 | . 1 . . . 1 . 1 . . . . . . . . . Fabricator Hacks 8 | . . . . . . 3 5 . . . . . . . . . Load Schematic 3 | . . . . . . 1 2 . . . . . . . . . Build 5 | . . . . . . 2 3 . . . . . . . . . Repair Station Hacks . | . . . . . . . . . . . . . . . . . Recycling Unit Hacks . | . . . . . . . . . . . . . . . . . Scanalyzer 2 | . . . . . . 2 . . . . . . . . . . Insert Component 1 | . . . . . . 1 . . . . . . . . . . Analyze 1 | . . . . . . 1 . . . . . . . . . . Garrison Access Hacks . | . . . . . . . . . . . . . . . . . Unauthorized Hacks 7 | . 1 . . . 1 1 2 2 . . . . . . . . Terminals 2 | . . . . . 1 . . 1 . . . . . . . . Botnet 2 | . . . . . 1 . . 1 . . . . . . . . Fabricators 3 | . . . . . . 1 2 . . . . . . . . . Prioritize 2 | . . . . . . . 2 . . . . . . . . . Haulers 1 | . . . . . . 1 . . . . . . . . . . Repair Stations . | . . . . . . . . . . . . . . . . . Recycling Units 1 | . 1 . . . . . . . . . . . . . . . Tunnel 1 | . 1 . . . . . . . . . . . . . . . Scanalyzers . | . . . . . . . . . . . . . . . . . Garrison Access 1 | . . . . . . . . 1 . . . . . . . . Jam 1 | . . . . . . . . 1 . . . . . . . . Data Cores Recovered . | . . . . . . . . . . . . . . . . . Used . | . . . . . . . . . . . . . . . . . Hacking Detections 17 | . 3 . . . 3 3 5 2 . . . . 1 . . . Full Trace Events 3 | . 1 . . . . . 1 1 . . . . . . . . Feedback Events . | . . . . . . . . . . . . . . . . . Feedback Blocked . | . . . . . . . . . . . . . . . . . Robot Schematics Acquired . | . . . . . . . . . . . . . . . . . Robots Built . | . . . . . . . . . . . . . . . . . Matter . | . . . . . . . . . . . . . . . . . Time . | . . . . . . . . . . . . . . . . . Total Robot Build Rating . | . . . . . . . . . . . . . . . . . Part Schematics Acquired 5 | . . . . . . 1 . . . . 4 . . . . . Parts Built 4 | . . . . . . 1 3 . . . . . . . . . Matter 1272 | . . . . . . 318 954 . . . . . . . . . Time 591 | . . . . . . 169 422 . . . . . . . . . Total Part Build Rating 24 | . . . . . . 6 18 . . . . . . . . . Parts Repaired . | . . . . . . . . . . . . . . . . . Time . | . . . . . . . . . . . . . . . . . Parts Recycled . | . . . . . . . . . . . . . . . . . Recycled Matter . | . . . . . . . . . . . . . . . . . Retrieved Matter . | . . . . . . . . . . . . . . . . . Retrieved Components . | . . . . . . . . . . . . . . . . . Parts Scanalyzed 1 | . . . . . . 1 . . . . . . . . . . Part Schematics Acquired 1 | . . . . . . 1 . . . . . . . . . . Parts Damaged . | . . . . . . . . . . . . . . . . . Bothacking | -11 -10 -10 -10 -9 -8 -7 -6 -5 -5 -5 -5 -4 -4 -4 -4 -4 ------------ Run | Scr Mat Min Exi Min Mat Fac Fac Fac Upp Upp Zhi Pro Fac Upp Upp War Used RIF Installer . | . . . . . . . . . . . . . . . . . Robots Hacked . | . . . . . . . . . . . . . . . . . Non-combat . | . . . . . . . . . . . . . . . . . Combat . | . . . . . . . . . . . . . . . . . Robot Hacks Applied . | . . . . . . . . . . . . . . . . . Relay Couplers Released . | . . . . . . . . . . . . . . . . . Robots Rewired . | . . . . . . . . . . . . . . . . . Allies Hacked . | . . . . . . . . . . . . . . . . . Hacks Repelled . | . . . . . . . . . . . . . . . . . Allies | -11 -10 -10 -10 -9 -8 -7 -6 -5 -5 -5 -5 -4 -4 -4 -4 -4 -------- Run | Scr Mat Min Exi Min Mat Fac Fac Fac Upp Upp Zhi Pro Fac Upp Upp War Total Allies 4 | . . . . 4 . . . . . . . . . . . . Largest Group 4 | . . . . 4 4 . . . . . . . . . . . Highest-Rated Group 71 | . . . . 71 71 . . . . . . . . . . . Highest-Rated Ally 31 | . . . . 31 31 . . . . . . . . . . . Total Orders . | . . . . . . . . . . . . . . . . . Ally Attacks 43 | . . . . . 31 . . . . . . . . . . 12 Total Damage 1594 | . . . . . 364 . . . . . . . . . . 1230 Kills 14 | . . . . . 4 . . . . . . . . . . 10 Allies Corrupted . | . . . . . . . . . . . . . . . . . Allies Melted . | . . . . . . . . . . . . . . . . . Intel | -11 -10 -10 -10 -9 -8 -7 -6 -5 -5 -5 -5 -4 -4 -4 -4 -4 ------- Run | Scr Mat Min Exi Min Mat Fac Fac Fac Upp Upp Zhi Pro Fac Upp Upp War Robot Analysis Total 4 | . . . . . . . . . . . 4 . . . . . Derelict Logs Recovered 7 | . . . . . . . . . 2 1 . 2 . . 2 . Drone Launches 1 | . . . . . . . . . . . . . . . . 1 Drone Recoveries . | . . . . . . . . . . . . . . . . . Exploration | -11 -10 -10 -10 -9 -8 -7 -6 -5 -5 -5 -5 -4 -4 -4 -4 -4 ------------- Run | Scr Mat Min Exi Min Mat Fac Fac Fac Upp Upp Zhi Pro Fac Upp Upp War Turns Passed 11299 | 123 614 364 666 266 585 1879 2525 438 418 436 242 290 549 632 587 685 Spaces Moved 6016 | 96 338 160 333 133 283 640 1078 216 301 367 180 241 162 461 483 544 Core 364 | 21 . . . . . . . . . . . . . . 36 307 Treads 1696 | . . . . . 204 267 1078 144 . . 3 . . . . . Legs 2821 | . 265 160 333 133 79 373 . . . . 65 241 162 461 388 161 Wheels 1059 | 75 73 . . . . . . 72 301 367 112 . . . 59 . Hover 76 | . . . . . . . . . . . . . . . . 76 Flight . | . . . . . . . . . . . . . . . . . Fastest Speed 46 | 50 90 200 200 200 160 123 160 115 115 115 115 120 120 120 50 46 Average Speed 148 | 82 133 200 200 200 171 212 164 155 115 115 121 120 120 120 112 116 Slowest Speed 360 | 150 200 200 200 200 200 280 263 360 115 115 360 120 120 120 120 280 Overloaded Moves 76 | . . . . . . . . . . . . . . . . 76 Propulsion Burnouts . | . . . . . . . . . . . . . . . . . Robots Hopped . | . . . . . . . . . . . . . . . . . Cave-ins Triggered . | . . . . . . . . . . . . . . . . . Teleports 1 | . . . . . . . . . . . . . . . 1 . Exploration Rate (%) 43 | 4 57 35 78 36 27 18 38 9 50 60 63 55 4 68 63 79 Regions Visited 16 Branch Regions 10 Pre-discovered Areas 6 | . 1 . . . . . . . 1 . 3 1 . . . . Known Exits Taken 9 | . 1 . . . . . . 1 1 1 1 1 1 1 1 . Unknown Exits Taken 7 | 1 . 1 1 1 1 1 1 . . . . . . . . . Scrap Searched 4 | . . . . . . . . . 1 1 . 2 . . . . Spaces Dug . | . . . . . . . . . . . . . . . . . Terrain Destroyed 110 | . 31 . . . . 15 26 . . . . . 36 . 2 . Melee . | . . . . . . . . . . . . . . . . . Projectile 5 | . . . . . . . 3 . . . . . . . 2 . AOE 105 | . 31 . . . . 15 23 . . . . . 36 . . . Terrain Rammed . | . . . . . . . . . . . . . . . . . Walls Destroyed . | . . . . . . . . . . . . . . . . . Machines Disabled . | . . . . . . . . . . . . . . . . . Actions | -11 -10 -10 -10 -9 -8 -7 -6 -5 -5 -5 -5 -4 -4 -4 -4 -4 --------- Run | Scr Mat Min Exi Min Mat Fac Fac Fac Upp Upp Zhi Pro Fac Upp Upp War Total 7553 | 123 424 185 334 134 343 926 1546 274 338 379 203 242 495 502 511 594 Wait 691 | . 8 3 . 2 3 94 212 6 23 6 . 2 322 8 2 . Move 6000 | 95 337 159 332 132 282 639 1077 215 300 366 179 240 161 460 482 544 Hop . | . . . . . . . . . . . . . . . . . Pick Up 115 | 13 20 5 1 . 12 19 28 6 . 2 3 . 1 1 . 4 Fast Attach 65 | 1 2 . . . 3 10 17 9 . . 9 . . . 1 13 Attach 72 | 6 6 1 . . 4 16 15 2 . 2 1 . 2 7 4 6 Detach 9 | . . . . . . 2 . 1 . . . . . . 2 4 Swap 35 | . 1 2 . . 5 6 15 3 1 . 1 . . 1 . . Drop 100 | . 4 4 1 . 11 13 25 13 . 2 10 . . . . 17 Fire 454 | 8 46 11 . . 23 126 156 19 14 1 . . 9 25 12 4 Melee . | . . . . . . . . . . . . . . . . . Ram 1 | . . . . . . 1 . . . . . . . . . . Kick 8 | . . . . . . . . . . . . . . . 8 . Crush 1 | . . . . . . . 1 . . . . . . . . . Escape Stasis . | . . . . . . . . . . . . . . . . . Rewire 2 | . . . . . . . . . . . . . . . . 2 Trap . | . . . . . . . . . . . . . . . . . Miscellaneous . | . . . . . . . . . . . . . . . . . Route ------- -11/Scrapyard -10/Materials (discovered 3 exits: [*Mat x2] / *Min) -10/Mines -10/Exiles -9/Mines -8/Materials -7/Factory -6/Factory -5/Factory -5/Upper Caves -5/Upper Caves (discovered 2 exits: *Fac / *Zhi) -5/Zhirov -4/Proximity Caves -4/Factory -4/Upper Caves -4/Upper Caves -4/Warlord History --------- Turn | Location | Event 18 | -11/Scrapyard | Discovered new exit (range 16) 124 | -11/Scrapyard | Entered Materials 134 | -10/Materials | Identified exit to Mines 260 | -10/Materials | Core integrity fell below 50% 263 | -10/Materials | Lost 5 parts (1p2n2w) 311 | -10/Materials | Build established: Mutant 370 | -10/Materials | Discovered new exit (range 16) 497 | -10/Materials | Discovered new exit (range 5) 738 | -10/Materials | Entered Mines 966 | -10/Mines | Core integrity fell below 20% 1060 | -10/Mines | Deemed a non-threat by the Exiles lab entrance 1060 | -10/Mines | Discovered new exit (range 5) 1102 | -10/Mines | Entered Exiles 1156 | -10/Exiles | Met 8R-AWN 1184 | -10/Exiles | Met EX-HEX 1280 | -10/Exiles | Met EX-DEC 1343 | -10/Exiles | Visited The Gauntlet 1748 | -10/Exiles | Discovered new exit (range 10) 1768 | -10/Exiles | Entered Mines 1907 | -9/Mines | Received a Mining Laser from a helpful Derelict 2002 | -9/Mines | Discovered new exit (range 9) 2022 | -9/Mines | Assisted by bots powering up and referring to "LRC-V3" 2034 | -9/Mines | Entered Materials 2034 | -8/Materials | Accompanied by 4 allies 2034 | -8/Materials | Evolved 4 slots: Utility x4 2523 | -8/Materials | Discovered new exit (range 12) 2619 | -8/Materials | Entered Factory 2619 | -7/Factory | Evolved 2 slots: Propulsion x1, Utility x1 2851 | -7/Factory | Lost 5 parts (1p2u2w) 2960 | -7/Factory | Fabricated Hvy. Gatling Laser (x1) 2971 | -7/Factory | Lost 4 parts (1n1u2w) 3119 | -7/Factory | Local fabrication network quarantined 3169 | -7/Factory | Build established: Scavenger-Mutant 4175 | -7/Factory | System corruption reached 10% 4314 | -7/Factory | Core integrity fell below 50% 4342 | -7/Factory | Discovered new exit (range 4) 4385 | -7/Factory | Lost 3 parts (2n1u) 4398 | -7/Factory | Found Powered Armor 4498 | -7/Factory | Entered another Factory area 4498 | -6/Factory | Evolved 2 slots: Propulsion x1, Utility x1 4930 | -6/Factory | Build established: Mutant 4946 | -6/Factory | Spotted B-75 Beast 5036 | -6/Factory | Destroyed B-75 Beast 5045 | -6/Factory | Lost 3 parts (1n1u1w) 5198 | -6/Factory | First assault squad dispatched 5215 | -6/Factory | Fabricated Hvy. Gatling Laser (x1) 5301 | -6/Factory | Fabricated Hvy. Gatling Laser (x1) 5372 | -6/Factory | Lost 7 parts (1n4u2w) 5385 | -6/Factory | Destroyed 14 combat bots 5626 | -6/Factory | Fabricated Hvy. Gatling Laser (x1) 6111 | -6/Factory | Lost 4 parts (2n1u1w) 6116 | -6/Factory | Destroyed 7 combat bots 6896 | -6/Factory | Local fabrication network quarantined 6942 | -6/Factory | Discovered new exit (range 10) 7023 | -6/Factory | Entered another Factory area 7023 | -5/Factory | Evolved 2 slots: Utility x2 7338 | -5/Factory | Discovered new exit (range 13) 7375 | -5/Factory | Identified exit to Upper Caves 7461 | -5/Factory | Entered Upper Caves 7736 | -5/Upper Caves | Encountered a Warlord checkpoint 7743 | -5/Upper Caves | Learned Factory emergency access door positions 7757 | -5/Upper Caves | Spotted B-75 Beast 7872 | -5/Upper Caves | Discovered new exit (range 6) 7877 | -5/Upper Caves | Identified exit to Upper Caves 7879 | -5/Upper Caves | Entered another Upper Caves area 7883 | -5/Upper Caves | Discovered new exit (range 9) 7885 | -5/Upper Caves | Learned 4 Factory zone layouts 7993 | -5/Upper Caves | Spotted B-75 Beast 8297 | -5/Upper Caves | Discovered new exit (range 10) 8301 | -5/Upper Caves | Encountered a Warlord checkpoint 8309 | -5/Upper Caves | Identified exit to Zhirov 8315 | -5/Upper Caves | Entered Zhirov 8315 | -5/Zhirov | Discovered new exit (range 3) 8336 | -5/Zhirov | Met Zhirov 8376 | -5/Zhirov | Learned location of Quarantine (-2) 8376 | -5/Zhirov | Learned location of Testing (-3) 8383 | -5/Zhirov | Zhirov requested help retrieving the SGEMP Prototype 8410 | -5/Zhirov | Found Alien Artifact 8410 | -5/Zhirov | Identified Integrated Dissipator 8410 | -5/Zhirov | Installed Integrated Dissipator, increased core heat dissipation (+20) 8428 | -5/Zhirov | Found Alien Artifact 8556 | -5/Zhirov | Identified exit to Proximity Caves 8557 | -5/Zhirov | Entered Proximity Caves 8583 | -4/Proximity Caves | Learned Research stockpile data 8586 | -4/Proximity Caves | Learned location of Armory (-4) 8817 | -4/Proximity Caves | Spotted B-86 Titan 8820 | -4/Proximity Caves | Discovered new exit (range 21) 8843 | -4/Proximity Caves | Identified exit to Factory 8847 | -4/Proximity Caves | Entered Factory 8847 | -4/Factory | Evolved 2 slots: Utility x2 8890 | -4/Factory | Discovered new exit (range 17) 9154 | -4/Factory | Build established: Skirmisher 9395 | -4/Factory | Identified exit to Upper Caves 9396 | -4/Factory | Entered Upper Caves 9421 | -4/Upper Caves | Lost 8 parts (1n6u1w) 9514 | -4/Upper Caves | Encountered a Warlord checkpoint 9645 | -4/Upper Caves | Attracted the attention of an 0b10 checkpoint 9671 | -4/Upper Caves | Build established: Mutant 10023 | -4/Upper Caves | Discovered new exit (range 5) 10027 | -4/Upper Caves | Identified exit to Upper Caves 10028 | -4/Upper Caves | Entered another Upper Caves area 10193 | -4/Upper Caves | Learned Research trap positions 10198 | -4/Upper Caves | Attracted the attention of an 0b10 checkpoint 10202 | -4/Upper Caves | Identified Transdimensional Reconstructor 10202 | -4/Upper Caves | Warped through subspace 10559 | -4/Upper Caves | Core integrity fell below 50% 10579 | -4/Upper Caves | Learned Research garrison access intel 10590 | -4/Upper Caves | Lost 10 parts (3n5u2w) 10608 | -4/Upper Caves | Discovered new exit (range 15) 10615 | -4/Upper Caves | Identified exit to Warlord 10615 | -4/Upper Caves | Entered Warlord 10660 | -4/Warlord | Visited the Vortex Lab 10662 | -4/Warlord | Warlord's base attacked by MAIN.C 10663 | -4/Warlord | Found Prototype Energy Cannon 10663 | -4/Warlord | Identified Vortex Cannon 10667 | -4/Warlord | Found Vortex Cannon 10722 | -4/Warlord | Found Prototype Device 10722 | -4/Warlord | Identified Wardrone Bay 11012 | -4/Warlord | Warlord forces counterattacked 11057 | -4/Warlord | Met Warlord 11125 | -4/Warlord | Found Prototype Reactor 11131 | -4/Warlord | Found Prototype Processor 11131 | -4/Warlord | Identified Exp. Targeting Computer 11142 | -4/Warlord | Found Prototype Device 11142 | -4/Warlord | Identified Exp. Focal Shield 11154 | -4/Warlord | Found Prototype Hackware 11154 | -4/Warlord | Identified Ghost Barrier 11274 | -4/Warlord | Allies destroyed Striker 11290 | -4/Warlord | Spotted Executioner 11294 | -4/Warlord | Core integrity fell below 20% 11300 | -4/Warlord | Destroyed by D-63 Destroyer with Heavy Rocket Launcher Last Messages --------------- 11279_ Myomer Leg fries itself beyond repair. 11283_ Hvy. Laser fries itself beyond repair. 11285_ Destroyed Shock Absorption System. 11286_ The unstable cave ceiling collapses. 11286_ Penetrated by Slug. 11286_ Slug penetrates D-63 Destroyer. 11287_ Dropped Wardrone Bay. 11287_ Dropped Imp. Focal Shield. 11288_ Dropped Antimatter Reactor. 11290_ Critical hit (Burn: +50). 11290_ Critical hit (Burn: +37). 11291_ The unstable cave ceiling collapses. 11291_ Antimatter Reactor crushed. 11291_ Myomer Leg destroyed. 11293_ G-67 Veteran destroyed. 11293_ Slug penetrates Earth. 11295_ Acquired 3 matter. 11295_ Vortex Cannon destroyed. 11295_ Acquired 39 matter. 11297_ Cld. Antigrav System destroyed. Map ----- +----------------------------------------------------+ | | | | | | | ?????????????????????????????????????????????????? | | ?????????????????????????????????????????????????? | | ?????????????????????????????????????????????????? | | ?????????????????????????????????????????????????? | | ?????????????????????????????????????????????????? | | ?????????????????????????????????????????????????? | | ?????????????????????????????????????????????????? | | ?????????????????????????????????????????????????? | | ?????????????????????????????????????????????????? | | ?????????????????????????????????????????????????? | | ????????????????????????######???????????????????? | | ???????????????????????? #???????????????????? | | ???????????????????????? #???????????????????? | | ???????????????????????? #???????????????????? | | ???????????????????????? ????????????????????? | | ???????????????????????? ????????????????????? | | ##############??????????# #????????????????????? | | # X#* #??????????# #??????????????????? | | # " #???#??????# #???????????????????? | | # " #? ??????# #????????????????????? | | # #? ?????## ##???????????????????? | | # # ! ! ##? ?????# #???????????????????? | | # ########## !????# @ #???????????????????? | | # """"""""## ????+ #???????????????????? | | # "## !!????# #???????????????????? | | # "## ????# #?????""????????????? | | + "## ??# ##???#""#???????????? | | / ""#?? ; #???#""#???????????? | | / "#??##"#### ######""#???????????? | | # "#??# ""#???????????? | | # "#??## #""#####???????? | | #""""""""""""#### = ""% "######### | | ##############" "" % """""""""" | | ##?# ] %# ! """""""""" | | #?## g = % !% ! | | ### d % =% =% | | ##" = !g % %= %% !% ! % %% | | + ! =%[ E%%%] [=*[ % = | | ### % %!% = %= % """"""""" | | # % = % ""% """""""""" | | # # % = # "" "######### | | # ### # ""#####???????? | | # # # ###""#???????????? | | # # #?#""#???????????? | | ## # """"" #### ##""#???????????? | | ?##############" """""= #???###""#???????????? | | ########X####### """""%* #?????#""#???????????? | +----------------------------------------------------+ Best States ------------- Heat Dissipation 90 Coolant Potential 65 Energy Generation 23 Energy Capacity 900 Matter Stores 300 Matter Capacity 300 Sight Range 22 Robot Scan Range 16 Terrain Scan Range 16 Terrain Scan Density 10 Jamming Range 12 Power Amplification 30 Armor Coverage 1225 Resistance: KI 25 Propulsion Shielding 90 Weapon Shielding 90 Phase Shifting 5 Evasion (%) 60 Targeting Accuracy 10 Armor Integrity Analysis 40 Recoil Reduction 4 Particle Charging 20 Item Schematics ----------------- Hvy. Gatling Laser | -7/Factory | Scanalyzed Assault Drone Bay | -5/Zhirov | Free Exp. Heat Sink | -5/Zhirov | Free Exp. Optical Array | -5/Zhirov | Free Imp. Arc Thrower | -5/Zhirov | Free Robot Schematics ------------------ None Fabricated ------------ Hvy. Gatling Laser | x1 | -7/Factory | Preloaded Hvy. Gatling Laser | x1 | -6/Factory Hvy. Gatling Laser | x1 | -6/Factory Hvy. Gatling Laser | x1 | -6/Factory Alien Tech Used ----------------- Integrated Dissipator Transdimensional Reconstructor Achievements -------------- None Challenges ------------ None Game ------ Seed ThrusterSeismicStripper Manual? 0 Play Time 01:20:22 Cumulative 207.1 hours Start 2021.05.06 @ 11:08:50 End 2021.05.10 @ 16:20:33 Sessions 2 Manual Loads 0 Difficulty Rogue Special Mode None Game No. 255 Rogue 255 Adventurer 0 Explorer 0 Win Type - Total 11 Types 3/3/0/1/1/3/0/0/0 Lore% 93 Gallery% 91 Achievement% 73 Wizard Run 0 Options --------- ASCII 0 Keyboard 0 Movement Numpad Keybinds 0 Fullscreen 2 Font 24/Smallcaps Map View 76x50 Tactical HUD 1 Map Filters NONE Filters NONE Steam 1 RUN: e94917dd-2474-4892-a3a8-9357a482fcd1